bitfinex/quotes_BTCUSD_20241208
["timestamp","ask_amount","ask_price","bid_price","bid_amount"]
[1733694703969,0.44959611,100090.0,100080.0,0.0009787]
[1733694704239,0.44559611,100090.0,100080.0,0.0009787]
[1733694704731,0.44759611,100090.0,100080.0,0.0009787]
[1733694711909,0.44388111,100090.0,100080.0,0.0009787]
[1733694712149,0.44560851,100090.0,100080.0,0.0009787]
[1733694712675,0.49560851,100090.0,100080.0,0.0009787]
[1733694712939,0.89918115,100090.0,100080.0,0.0009787]
[1733694713148,0.79936581,100090.0,100080.0,0.0009787]
[1733694713358,0.97869165,100090.0,100080.0,0.0009787]
[1733694713582,1.25284895,100090.0,100080.0,0.0009787]
[1733694713789,1.25295817,100090.0,100080.0,0.0009787]
[1733694714205,1.16318603,100090.0,100080.0,0.0009787]
[1733694715226,1.02869165,100090.0,100080.0,0.0009787]
[1733694715857,1.16341036,100090.0,100080.0,0.0009787]
[1733694716121,1.24440582,100090.0,100080.0,0.0009787]
[1733694716322,0.95373769,100090.0,100080.0,0.0009787]
[1733694716806,1.13335307,100090.0,100080.0,0.0009787]
[1733694717014,1.15158027,100090.0,100080.0,0.0009787]
[1733694717225,0.95796489,100090.0,100080.0,0.0009787]
[1733694717466,1.14156884,100090.0,100080.0,0.0009787]
[1733694717668,1.15056884,100090.0,100080.0,0.0019787]
[1733694717873,1.14656884,100090.0,100080.0,0.0019787]
[1733694718087,1.15056884,100090.0,100080.0,0.0019787]
[1733694720884,0.97096489,100090.0,100080.0,0.0019787]
[1733694721100,0.2,100080.0,100040.0,0.41397637]
[1733694721317,0.2,100080.0,100050.0,0.0009873]
[1733694721318,0.359804,100060.0,100050.0,0.0009873]
[1733694721849,0.539709,100060.0,100040.0,0.59447689]
[1733694722055,0.359804,100060.0,100040.0,0.92493635]
[1733694722234,0.359801,100060.0,100040.0,0.59447689]
[1733694722482,0.359801,100060.0,100040.0,0.74498976]
[1733694722951,0.539704,100060.0,100040.0,0.41454989]
[1733694723121,0.539704,100060.0,100040.0,0.28022462]
[1733694723330,0.359801,100060.0,100050.0,0.003]
[1733694723535,0.539706,100060.0,100040.0,0.28308832]
[1733694723954,0.539706,100060.0,100040.0,0.28608832]
[1733694724167,0.539706,100060.0,100040.0,0.58840732]
[1733694724384,0.63973551,100060.0,100040.0,0.40848832]
[1733694724591,0.17991,100050.0,100040.0,0.22857132]
[1733694725198,0.17991,100050.0,100040.0,0.13902114]
[1733694725965,0.17991,100050.0,100040.0,0.13602114]
[1733694726168,0.18091,100050.0,100040.0,0.14402114]
[1733694726371,0.18091,100050.0,100040.0,0.14802114]
[1733694730355,0.18091,100050.0,100040.0,0.32794914]
[1733694730560,0.001,100050.0,100040.0,0.40341079]
[1733694730751,0.001,100050.0,100040.0,0.32794914]
[1733694731172,0.001,100050.0,100040.0,0.41749932]
[1733694731389,0.001,100050.0,100040.0,0.49296097]
[1733694731593,0.001,100050.0,100040.0,1.1328444]
[1733694731795,0.001,100050.0,100040.0,1.23648312]
[1733694732388,0.539647,100070.0,100050.0,0.44101]
[1733694732956,0.63967651,100070.0,100050.0,0.261102]
[1733694733978,0.64067651,100070.0,100050.0,0.261102]
[1733694734442,0.64067251,100070.0,100050.0,0.441003]
[1733694734747,0.64240051,100070.0,100050.0,0.441003]
[1733694735435,0.64240151,100070.0,100050.0,0.261101]
[1733694735833,0.64240151,100070.0,100050.0,0.44101]
[1733694737214,0.46251551,100070.0,100050.0,0.620912]
[1733694737415,0.002728,100070.0,100060.0,0.179892]
[1733694737749,0.182602,100070.0,100060.0,0.262692]
[1733694739704,0.181602,100070.0,100060.0,0.262692]
[1733694740089,0.182602,100070.0,100060.0,0.262692]
[1733694744932,0.182602,100070.0,100060.0,0.27288986]
[1733694745540,0.54212151,100070.0,100050.0,0.58287682]
[1733694745748,0.179892,100060.0,100050.0,0.08955018]
[1733694745945,0.359792,100060.0,100040.0,0.84484304]
[1733694746216,0.359792,100060.0,100040.0,0.9957908]
[1733694746436,0.179892,100060.0,100050.0,0.0008639]
[1733694746659,0.27992151,100060.0,100050.0,0.0008639]
[1733694748244,0.27992151,100060.0,100050.0,0.0028639]
[1733694748458,0.35952151,100060.0,100050.0,0.0028639]
[1733694748661,0.35952151,100060.0,100050.0,0.0068639]
[1733694754147,0.40952151,100060.0,100050.0,0.0068639]
[1733694754377,0.60642151,100060.0,100050.0,0.0068639]
[1733694755568,0.60642151,100060.0,100050.0,0.0028639]
[1733694755777,0.61142151,100060.0,100050.0,0.0028639]
[1733694755986,0.61142151,100060.0,100050.0,0.0008639]
[1733694756186,0.67832157,100060.0,100050.0,0.0008639]
[1733694756365,0.68032157,100060.0,100050.0,0.0008639]
[1733694758002,0.61342151,100060.0,100050.0,0.0008639]
[1733694762338,0.71364632,100060.0,100050.0,0.0008639]
[1733694762544,0.62386087,100060.0,100050.0,0.0008639]
[1733694762979,0.71364632,100060.0,100050.0,0.0008639]
[1733694763212,0.62386087,100060.0,100050.0,0.0008639]
[1733694763731,0.81346166,100060.0,100050.0,0.0008639]
[1733694763972,0.72367621,100060.0,100050.0,0.0008639]
[1733694765503,0.64361898,100060.0,100050.0,0.0008639]
[1733694768926,0.73335681,100060.0,100050.0,0.0008639]
[1733694769157,0.73508461,100060.0,100050.0,0.0008639]
[1733694771028,0.7350673,100060.0,100050.0,0.0008639]
[1733694771922,0.6850673,100060.0,100050.0,0.0008639]
[1733694772143,1.07533428,100060.0,100050.0,0.0008639]
[1733694772393,1.34963558,100060.0,100050.0,0.0008639]
[1733694772606,1.25991506,100060.0,100050.0,0.0008639]
[1733694773513,1.26506177,100060.0,100050.0,0.0008639]
[1733694774209,1.26006177,100060.0,100050.0,0.0008639]
[1733694774472,1.26906177,100060.0,100050.0,0.0018639]
[1733694774935,1.13253485,100060.0,100050.0,0.0018639]
[1733694775187,1.13253485,100060.0,100050.0,9e-07]
[1733694775443,0.47831,100050.0,100040.0,0.00143722]
[1733694775653,0.90226968,100050.0,100040.0,0.00143722]
[1733694776582,0.76780078,100050.0,100040.0,0.00143722]
[1733694777683,0.66798544,100050.0,100040.0,0.00143722]
[1733694777924,0.55533951,100050.0,100040.0,0.00143722]
[1733694778151,0.56333951,100050.0,100040.0,0.00143722]
[1733694778355,0.56733951,100050.0,100040.0,0.00143722]
[1733694778582,0.44193951,100050.0,100040.0,0.00143722]
[1733694779368,0.43793951,100050.0,100040.0,0.00143722]
[1733694779797,0.44193951,100050.0,100040.0,0.00143722]
[1733694780111,0.43393951,100050.0,100040.0,0.00143722]
[1733694780347,0.44293951,100050.0,100040.0,0.00243722]
[1733694780549,0.44293951,100050.0,100040.0,0.00143722]
[1733694780774,0.43393951,100050.0,100040.0,0.00143722]
[1733694780967,0.43493951,100050.0,100040.0,0.00243722]
[1733694781379,0.43693951,100050.0,100040.0,0.00243722]
[1733694783929,0.43693951,100050.0,100040.0,0.00107728]
[1733694792760,0.43866731,100050.0,100040.0,0.00107728]
[1733694811861,0.28866731,100050.0,100040.0,0.00107728]
[1733694812684,0.28166731,100050.0,100040.0,0.08047728]
[1733694813139,0.28566731,100050.0,100040.0,0.08047728]
[1733694815912,0.28566731,100050.0,100040.0,7.728e-05]
[1733694824524,0.28566731,100050.0,100040.0,0.08973288]
[1733694826054,0.28566731,100050.0,100040.0,0.22421628]
[1733694826410,0.28566731,100050.0,100040.0,0.08973288]
[1733694827269,0.28566731,100050.0,100040.0,0.22421628]
[1733694827981,0.28566731,100050.0,100040.0,0.08973288]
[1733694828213,0.28566731,100050.0,100040.0,0.22421628]
[1733694828450,0.28566731,100050.0,100040.0,0.08973288]
[1733694829163,0.28566731,100050.0,100040.0,0.0897522]
[1733694833952,0.28566731,100050.0,100040.0,0.22426458]
[1733694834182,0.28566731,100050.0,100040.0,0.22425341]
[1733694836708,0.28566731,100050.0,100040.0,0.55525106]
[1733694837217,0.28566731,100050.0,100040.0,0.22425341]
[1733694837682,0.28566731,100050.0,100040.0,0.55524272]
[1733694838116,0.28566731,100050.0,100040.0,0.22425341]
[1733694838850,0.28566731,100050.0,100040.0,0.22424779]
[1733694839589,0.28566731,100050.0,100040.0,0.55523849]
[1733694839864,0.28566731,100050.0,100040.0,0.22424779]
[1733694840329,0.28566731,100050.0,100040.0,0.55524114]
[1733694840537,0.28566731,100050.0,100040.0,0.22424779]
[1733694841274,0.28566731,100050.0,100040.0,0.08974548]
[1733694841998,0.0057278,100050.0,100040.0,0.47963744]
[1733694842256,0.0057278,100050.0,100040.0,0.99641302]
[1733694842723,0.0047278,100050.0,100040.0,0.99641302]
[1733694842956,0.0017278,100050.0,100040.0,1.22055272]
[1733694843181,0.0027278,100050.0,100040.0,1.22055272]
[1733694845141,0.0017278,100050.0,100040.0,0.99641302]
[1733694845348,0.0017278,100050.0,100040.0,1.22055272]
[1733694845556,0.0027278,100050.0,100040.0,1.22055272]
[1733694846177,0.0027278,100050.0,100040.0,0.99641302]
[1733694847134,0.0027278,100050.0,100040.0,0.99623308]
[1733694848192,0.0017278,100050.0,100040.0,0.99623308]
[1733694848623,0.0027278,100050.0,100040.0,1.07169473]
[1733694848827,0.0027278,100050.0,100040.0,1.2061456]
[1733694849397,0.0027278,100050.0,100040.0,1.07169473]
[1733694849600,0.0037278,100050.0,100040.0,0.8924269]
[1733694850213,0.0037278,100050.0,100040.0,1.07155607]
[1733694850799,0.0037278,100050.0,100040.0,1.07355607]
[1733694851798,0.0027278,100050.0,100040.0,1.07355607]
[1733694851995,0.0027278,100050.0,100040.0,1.07755607]
[1733694852208,0.0027278,100050.0,100040.0,1.07749662]
[1733694853692,0.2772816,100070.0,100060.0,0.179892]
[1733694853905,0.4272816,100070.0,100060.0,0.179892]
[1733694854760,0.4292816,100070.0,100060.0,0.179892]
[1733694855485,0.4342816,100070.0,100060.0,0.179892]
[1733694856366,0.4342816,100070.0,100050.0,0.84039161]
[1733694857252,0.6141626,100070.0,100050.0,0.70611364]
[1733694857464,0.6141636,100070.0,100050.0,0.70611364]
[1733694857870,0.6121636,100070.0,100050.0,0.70611364]
[1733694858077,0.6141636,100070.0,100050.0,0.70611364]
[1733694858500,0.6141636,100070.0,100050.0,0.52621264]
[1733694858501,0.6091636,100070.0,100050.0,0.52621264]
[1733694858718,0.6141636,100070.0,100050.0,0.53634619]
[1733694858923,0.6141636,100070.0,100050.0,0.71624719]
[1733694860404,0.7940476,100070.0,100050.0,0.53634619]
[1733694860603,0.6141636,100070.0,100050.0,0.53634619]
[1733694860930,0.6141636,100070.0,100050.0,0.71624719]
[1733694861150,0.5330636,100070.0,100050.0,0.71624719]
[1733694861360,0.5347908,100070.0,100050.0,0.71624719]
[1733694861950,0.0087272,100070.0,100060.0,0.25535365]
[1733694862147,0.0087272,100070.0,100060.0,0.179892]
[1733694862328,0.0087272,100070.0,100060.0,0.18089128]
[1733694863059,0.0087272,100070.0,100060.0,0.27035134]
[1733694863060,0.0037272,100070.0,100060.0,0.27035134]
[1733694863259,0.0017272,100070.0,100060.0,0.26935206]
[1733694863477,0.0067272,100070.0,100060.0,0.26935206]
[1733694863638,0.0087272,100070.0,100060.0,0.26935206]
[1733694863845,0.0087272,100070.0,100060.0,0.42481371]
[1733694864015,0.0067272,100070.0,100060.0,0.42481371]
[1733694864424,0.0067272,100070.0,100060.0,0.5590038]
[1733694864642,0.0067272,100070.0,100060.0,0.42481371]
[1733694865075,0.0017272,100070.0,100060.0,0.42481371]
[1733694865287,0.0027272,100070.0,100060.0,0.42481371]
[1733694866556,0.0027272,100070.0,100060.0,0.4247077]
[1733694866782,0.0027272,100070.0,100060.0,0.55873878]
[1733694866990,0.0027272,100070.0,100060.0,0.88856289]
[1733694867194,0.0027272,100070.0,100060.0,0.4247077]
[1733694870208,0.0027272,100070.0,100060.0,0.33535365]
[1733694870416,0.0027272,100070.0,100060.0,0.4247077]
[1733694870816,0.0027272,100070.0,100060.0,0.33535365]
[1733694873036,0.0027272,100070.0,100060.0,0.33621705]
[1733694880693,0.0027272,100070.0,100060.0,0.4255711]
[1733694880919,0.0027272,100070.0,100060.0,0.52560061]
[1733694881132,0.0027272,100070.0,100060.0,0.60106226]
[1733694881330,0.0027272,100070.0,100060.0,0.9893342]
[1733694881588,0.0027272,100070.0,100060.0,1.24350396]
[1733694881795,0.0027272,100070.0,100060.0,1.24326812]
[1733694882210,0.0017272,100070.0,100060.0,1.24326812]
[1733694882416,0.0017272,100070.0,100060.0,1.24726812]
[1733694882625,0.0017272,100070.0,100060.0,1.24926812]
[1733694886004,0.0017272,100070.0,100060.0,1.47253867]
[1733694886326,0.0017272,100070.0,100060.0,1.24926812]
[1733694887162,0.0017272,100070.0,100060.0,1.39707702]
[1733694887367,0.0017272,100070.0,100060.0,1.17380647]
[1733694887905,0.0017272,100070.0,100060.0,1.39707702]
[1733694890779,0.0017272,100070.0,100060.0,1.39745552]
[1733694891413,0.0017272,100070.0,100060.0,1.32199387]
[1733694891619,0.0017272,100070.0,100060.0,1.39745552]
[1733694894170,0.0017272,100070.0,100060.0,1.3081119]
[1733694894382,0.0017272,100070.0,100060.0,1.23265025]
[1733694894583,0.0017272,100070.0,100060.0,1.3081119]
[1733694895206,0.0833272,100070.0,100060.0,0.9186736]
[1733694895488,0.3121012,100070.0,100060.0,0.0068634]
[1733694897114,0.3121012,100070.0,100060.0,0.0048634]
[1733694898317,0.3121012,100070.0,100060.0,0.0008634]
[1733694898499,0.3131012,100070.0,100060.0,0.0008634]
[1733694900468,0.3131012,100070.0,100060.0,0.09033522]
[1733694900699,0.1332272,100070.0,100060.0,0.27022722]
[1733694901841,0.1332272,100070.0,100060.0,0.1807554]
[1733694902064,0.1332272,100070.0,100060.0,0.27022722]
[1733694903436,0.1332272,100070.0,100060.0,0.2702453]
[1733694904381,0.1332272,100070.0,100060.0,0.40448015]
[1733694905257,0.1332272,100070.0,100060.0,0.7348911]
[1733694908258,0.1332272,100070.0,100060.0,0.73511616]
[1733694908736,0.1332272,100070.0,100060.0,0.91419042]
[1733694908990,0.1332272,100070.0,100060.0,0.73511616]
[1733694909930,0.1332272,100070.0,100060.0,0.73512684]
[1733694910175,0.1332272,100070.0,100060.0,0.40459823]
[1733694912542,0.1332272,100070.0,100060.0,0.73508161]
[1733694912990,0.1332272,100070.0,100060.0,0.91415587]
[1733694913485,0.1332272,100070.0,100060.0,0.73508161]
[1733694916220,0.3131012,100070.0,100060.0,0.73508161]
[1733694916419,0.3131012,100070.0,100060.0,0.40459823]
[1733694916830,0.3131012,100070.0,100060.0,0.73506886]
[1733694917052,0.3131012,100070.0,100060.0,0.40459823]
[1733694917270,0.3131012,100070.0,100060.0,0.73506526]
[1733694917471,0.3131012,100070.0,100060.0,0.7350634]
[1733694917674,0.3131012,100070.0,100060.0,0.7350314]
[1733694919142,0.1332272,100070.0,100060.0,0.7350314]
[1733694922511,0.1332272,100070.0,100060.0,0.73499966]
[1733694923184,0.3131012,100070.0,100060.0,0.73499966]
[1733694923404,0.3131012,100070.0,100060.0,0.27027371]
[1733694923642,0.3131012,100070.0,100060.0,0.73499818]
[1733694924083,0.3131012,100070.0,100060.0,0.40455118]
[1733694924710,0.3131012,100070.0,100060.0,0.73498803]
[1733694924935,0.3131012,100070.0,100060.0,0.40455118]
[1733694925358,0.3131012,100070.0,100060.0,0.7350001]
[1733694925784,0.3131012,100070.0,100060.0,0.27027371]
[1733694926019,0.3131012,100070.0,100060.0,0.40455118]
[1733694927994,0.3131012,100070.0,100060.0,0.73500936]
[1733694928207,0.3131012,100070.0,100060.0,0.40455118]
[1733694928618,0.3131012,100070.0,100060.0,0.73513521]
[1733694928833,0.1332272,100070.0,100060.0,0.73513521]
[1733694930151,0.1332272,100070.0,100060.0,0.91417184]
[1733694930390,0.1332272,100070.0,100060.0,0.73513521]
[1733694930816,0.1332272,100070.0,100060.0,0.91417184]
[1733694931891,0.1332272,100070.0,100060.0,0.73513521]
[1733694932097,0.1332272,100070.0,100060.0,0.73527008]
[1733694932436,0.1332272,100070.0,100060.0,0.91439406]
[1733694936218,0.1332272,100070.0,100060.0,1.13829904]
[1733694936445,0.1332272,100070.0,100060.0,0.91439406]
[1733694936879,0.1332272,100070.0,100060.0,1.13829904]
[1733694937096,0.1332272,100070.0,100060.0,0.91467619]
[1733694937312,0.1332272,100070.0,100060.0,1.13866728]
[1733694938893,0.1332272,100070.0,100060.0,1.04907085]
[1733694940035,0.0809272,100080.0,100070.0,0.179874]
[1733694940245,0.27663657,100090.0,100070.0,1.24665047]
[1733694940461,0.00691483,100090.0,100080.0,0.26944685]
[1733694941541,0.18675283,100090.0,100080.0,0.26944685]
[1733694941777,0.18732511,100090.0,100080.0,0.26944685]
[1733694942684,0.18932511,100090.0,100080.0,0.26944685]
[1733694942907,0.19432511,100090.0,100080.0,0.08959085]
[1733694943148,0.27272511,100090.0,100080.0,0.08959085]
[1733694943357,0.32252511,100090.0,100080.0,0.08959085]
[1733694943585,0.32252511,100090.0,100070.0,0.62727436]
[1733694943586,0.0784,100080.0,100070.0,0.62727436]
[1733694943813,0.308056,100080.0,100070.0,0.73384422]
[1733694944037,0.308056,100080.0,100070.0,0.55459141]
[1733694944251,0.308056,100080.0,100070.0,0.22403046]
[1733694944897,0.229656,100080.0,100070.0,0.40390446]
[1733694945300,0.229656,100080.0,100070.0,0.74439178]
[1733694945565,0.0498,100080.0,100070.0,0.74439178]
[1733694946539,0.0498,100080.0,100070.0,0.92364459]
[1733694946934,0.0498,100080.0,100070.0,0.74439178]
[1733694946935,0.229656,100080.0,100070.0,0.74439178]
[1733694947411,0.0498,100080.0,100070.0,0.74439178]
[1733694947816,0.229656,100080.0,100070.0,0.92364459]
[1733694948025,0.229656,100080.0,100070.0,0.74439178]
[1733694948233,0.229656,100080.0,100070.0,0.56451778]
[1733694949571,0.229656,100080.0,100070.0,0.23390089]
[1733694949764,0.229656,100080.0,100070.0,0.56446591]
[1733694950136,0.229656,100080.0,100070.0,0.74371872]
[1733694950347,0.229656,100080.0,100070.0,0.56446591]
[1733694951121,0.229656,100080.0,100070.0,0.56420229]
[1733694953354,0.229656,100080.0,100070.0,0.56506559]
[1733694953568,0.2313826,100080.0,100070.0,0.56506559]
[1733694955633,0.2313826,100080.0,100070.0,0.23456489]
[1733694955860,0.3127826,100080.0,100070.0,0.10026619]
[1733694956104,0.3127826,100080.0,100070.0,0.10025795]
[1733694957107,0.3127826,100080.0,100070.0,0.09038752]
[1733694957330,0.41281211,100080.0,100070.0,0.0008633]
[1733694958016,0.36281211,100080.0,100070.0,0.0008633]
[1733694958253,0.36281211,100080.0,100070.0,0.00043941]
[1733694958698,0.36081211,100080.0,100070.0,0.00043941]
[1733694959155,0.45066421,100080.0,100070.0,0.00043941]
[1733694960110,0.67366421,100080.0,100070.0,0.00043941]
[1733694960334,0.80844237,100080.0,100070.0,0.00043941]
[1733694960560,0.98814658,100080.0,100070.0,0.00043941]
[1733694961026,1.03544658,100080.0,100070.0,0.00043941]
[1733694961944,1.03744658,100080.0,100070.0,0.00043941]
[1733694962155,0.98744658,100080.0,100070.0,0.00043941]
[1733694962370,0.98544658,100080.0,100070.0,0.00043941]
[1733694962598,0.99444658,100080.0,100070.0,0.00043941]
[1733694962825,0.98944658,100080.0,100070.0,0.00043941]
[1733694963274,0.99844658,100080.0,100070.0,0.00143941]
[1733694963527,0.81874237,100080.0,100070.0,0.00143941]
[1733694964056,0.65108275,100080.0,100070.0,0.00143941]
[1733694964527,0.78093875,100080.0,100070.0,0.00143941]
[1733694965486,0.64792899,100080.0,100070.0,0.00143941]
[1733694968265,0.59792899,100080.0,100070.0,0.00143941]
[1733694969312,0.56486295,100080.0,100070.0,0.00143941]
[1733694969504,0.3445826,100080.0,100070.0,0.00143941]
[1733694969719,0.2945826,100080.0,100070.0,0.00143941]
[1733694976236,0.39461211,100080.0,100070.0,0.00143941]
[1733694976397,0.52291211,100080.0,100070.0,0.00143941]
[1733694976869,0.42291211,100080.0,100070.0,0.00143941]
[1733694978413,0.5126755,100080.0,100070.0,0.00143941]
[1733694978634,0.42291211,100080.0,100070.0,0.00143941]
[1733694984916,0.44591211,100080.0,100070.0,0.00143941]
[1733694986837,0.39591211,100080.0,100070.0,0.00143941]
[1733694989197,0.29201211,100080.0,100070.0,0.00143941]
[1733694989412,0.24461211,100080.0,100070.0,0.08363941]
[1733694989626,0.10175611,100080.0,100070.0,0.08363941]
[1733694989872,0.28161211,100080.0,100070.0,0.08363941]
[1733694990725,0.28261211,100080.0,100070.0,0.08363941]
[1733694991194,0.28461211,100080.0,100070.0,0.08363941]
[1733694992943,0.28261211,100080.0,100070.0,0.08263941]
[1733694993371,0.28661211,100080.0,100070.0,0.08263941]
[1733695007858,0.14405171,100090.0,100080.0,0.0754]
[1733695008030,0.24408122,100090.0,100080.0,0.0754]
[1733695009286,0.14705171,100090.0,100080.0,0.255256]
[1733695009483,0.15505171,100090.0,100080.0,0.256256]
[1733695012134,0.01157228,100090.0,100080.0,0.256256]
[1733695012614,0.52714844,100100.0,100080.0,0.256256]
[1733695012833,0.52714844,100100.0,100080.0,0.25682828]
[1733695012834,0.62717795,100100.0,100080.0,0.25682828]
[1733695013061,0.62717795,100100.0,100080.0,0.2667846]
[1733695013745,0.63217795,100100.0,100080.0,0.4456406]
[1733695014235,0.63417795,100100.0,100080.0,0.4466406]
[1733695015907,0.229538,100090.0,100080.0,0.00157228]
[1733695016201,0.32956751,100090.0,100080.0,0.00157228]
[1733695016442,0.27956751,100090.0,100080.0,0.00157228]
[1733695016879,0.27956751,100090.0,100080.0,0.00057228]
[1733695017128,0.28156751,100090.0,100080.0,0.00057228]
[1733695017303,0.10202951,100090.0,100080.0,0.00057228]
[1733695017808,0.28186751,100090.0,100080.0,0.00057228]
[1733695018535,0.38546751,100090.0,100080.0,0.00057228]
[1733695018977,0.33546751,100090.0,100080.0,0.00057228]
[1733695019582,0.38516751,100090.0,100080.0,0.00057228]
[1733695021927,0.38689451,100090.0,100080.0,0.00057228]
[1733695025874,0.25659451,100090.0,100080.0,0.00057228]
[1733695030684,0.183565,100090.0,100080.0,0.07597228]
[1733695030900,0.183565,100090.0,100080.0,0.25582828]
[1733695031554,0.181565,100090.0,100080.0,0.25582828]
[1733695031768,0.184565,100090.0,100080.0,0.25582828]
[1733695032410,0.181565,100090.0,100080.0,0.25582828]
[1733695032633,0.002727,100090.0,100080.0,0.25582828]
[1733695033998,0.182565,100090.0,100080.0,0.07683578]
[1733695035737,0.182565,100090.0,100080.0,0.00143578]
[1733695039145,0.30559451,100090.0,100080.0,0.00143578]
[1733695040889,0.39539018,100090.0,100080.0,0.00143578]
[1733695045007,0.30559451,100090.0,100080.0,0.00143578]
[1733695049668,0.30559451,100090.0,100080.0,0.08443578]
[1733695049864,0.002727,100090.0,100080.0,0.26429178]
[1733695050308,0.002727,100090.0,100080.0,0.31079178]
[1733695050718,0.002727,100090.0,100080.0,0.40020394]
[1733695051972,0.40408051,100110.0,100090.0,0.442656]
[1733695052173,0.08979567,100110.0,100100.0,0.26282]
[1733695052428,0.03979567,100110.0,100100.0,0.26282]
[1733695052625,0.80019474,100120.0,100100.0,0.44264]
[1733695052794,0.58593941,100120.0,100100.0,0.44264]
[1733695053240,0.57593941,100120.0,100100.0,0.44264]
[1733695053457,0.005,100110.0,100100.0,0.44264]
[1733695053806,0.005,100110.0,100100.0,0.44364]
[1733695053942,0.53801651,100120.0,100100.0,0.44364]
[1733695054166,0.45961651,100120.0,100100.0,0.44364]
[1733695054384,0.46461651,100120.0,100100.0,0.44364]
[1733695054594,0.46461651,100120.0,100100.0,0.26382]
[1733695054807,0.46461651,100120.0,100100.0,0.443632]
[1733695055023,0.46461651,100120.0,100100.0,0.442632]
[1733695056332,0.0017266,100110.0,100100.0,0.443632]
[1733695057644,0.0037266,100110.0,100100.0,0.443632]
[1733695058503,0.0037266,100110.0,100100.0,0.442632]
[1733695059201,0.0017266,100110.0,100100.0,0.442632]
[1733695059635,0.0047266,100110.0,100100.0,0.442632]
[1733695060058,0.0017266,100110.0,100100.0,0.442632]
[1733695060340,0.0027266,100110.0,100100.0,0.442632]
[1733695062225,0.0027266,100110.0,100100.0,0.262812]
[1733695064368,0.35491832,100130.0,100110.0,0.44268]
[1733695064583,0.62447227,100130.0,100110.0,0.442679]
[1733695064801,0.51478928,100130.0,100110.0,0.442677]
[1733695065236,0.51478928,100130.0,100110.0,0.622469]
[1733695065698,0.46478928,100130.0,100110.0,0.622469]
[1733695066125,0.46778928,100130.0,100110.0,0.622469]
[1733695068352,0.64929588,100130.0,100110.0,0.262887]
[1733695068639,0.69929588,100130.0,100110.0,0.262887]
[1733695068862,0.69929588,100130.0,100110.0,0.442688]
[1733695069532,0.46951588,100130.0,100110.0,0.442681]
[1733695073078,0.69929588,100130.0,100110.0,0.262887]
[1733695074590,0.27981351,100120.0,100100.0,0.3041872]
[1733695074802,0.45961351,100120.0,100100.0,0.3041872]
[1733695075220,0.63941051,100120.0,100100.0,0.3041872]
[1733695076051,0.45961051,100120.0,100100.0,0.3041872]
[1733695076290,0.45961051,100120.0,100100.0,0.4839992]
[1733695076937,0.00312355,100110.0,100100.0,0.4839992]
[1733695077124,0.45960751,100120.0,100100.0,0.4839992]
[1733695077271,0.00312355,100110.0,100100.0,0.483017]
[1733695077483,0.45960751,100120.0,100100.0,0.483017]
[1733695077688,0.00312355,100110.0,100100.0,0.483017]
[1733695077894,0.45960751,100120.0,100100.0,0.483017]
[1733695078264,0.00312355,100110.0,100100.0,0.483017]
[1733695078476,0.63940251,100120.0,100100.0,0.484017]
[1733695078666,0.00312356,100110.0,100100.0,0.484017]
[1733695078809,0.63940251,100120.0,100100.0,0.483017]
[1733695079015,0.00312356,100110.0,100100.0,0.485017]
[1733695079238,0.00312356,100110.0,100100.0,0.483017]
[1733695079663,0.63940251,100120.0,100100.0,0.483017]
[1733695079859,0.00312356,100110.0,100100.0,0.484017]
[1733695080081,0.0017266,100110.0,100100.0,0.484017]
[1733695080350,0.0017266,100110.0,100100.0,0.486017]
[1733695080552,0.0017266,100110.0,100100.0,0.484017]
[1733695081648,0.0017266,100110.0,100100.0,0.483017]
[1733695082706,0.0017266,100110.0,100100.0,0.486017]
[1733695091719,0.0017266,100110.0,100100.0,0.4868801]
[1733695097559,0.0017266,100110.0,100100.0,0.57609425]
[1733695098166,0.0017266,100110.0,100100.0,0.3070681]
[1733695098827,0.0017266,100110.0,100100.0,0.39628225]
[1733695099033,0.0017266,100110.0,100100.0,0.3070681]
[1733695100810,0.0017266,100110.0,100100.0,0.39649546]
[1733695101251,0.0017266,100110.0,100100.0,0.3070681]
[1733695104067,0.0017266,100110.0,100100.0,0.39649546]
[1733695105255,0.0017266,100110.0,100100.0,0.3965015]
[1733695105973,0.0017266,100110.0,100100.0,1.11508844]
[1733695106179,0.0017266,100110.0,100100.0,1.33867194]
[1733695109095,0.0017266,100110.0,100100.0,1.03962679]
[1733695109297,0.0017266,100110.0,100100.0,0.86075999]
[1733695109500,0.0017266,100110.0,100100.0,1.03962679]
[1733695109930,0.0017266,100110.0,100100.0,0.86075999]
[1733695110131,0.0017266,100110.0,100100.0,0.81467724]
[1733695110547,0.0017266,100110.0,100100.0,0.35048383]
[1733695116375,0.0017266,100110.0,100100.0,0.81470671]
[1733695116558,0.0017266,100110.0,100100.0,0.99353818]
[1733695116793,0.0017266,100110.0,100100.0,0.81470671]
[1733695119945,0.0017266,100110.0,100100.0,0.81477547]
[1733695122577,0.0017266,100110.0,100100.0,0.81481109]
[1733695124117,0.0017266,100110.0,100100.0,0.9936858]
[1733695124293,0.0017266,100110.0,100100.0,0.81481109]
[1733695125763,0.0017266,100110.0,100100.0,0.9936858]
[1733695126181,0.0017266,100110.0,100100.0,0.81481109]
[1733695126792,0.0017266,100110.0,100100.0,0.9936858]
[1733695127020,0.0017266,100110.0,100100.0,1.06914745]
[1733695127220,0.85984621,100130.0,100110.0,0.440992]
[1733695127436,0.55290308,100130.0,100120.0,0.179784]
[1733695127639,0.32310857,100130.0,100120.0,0.179784]
[1733695127844,0.22139685,100130.0,100120.0,0.179784]
[1733695128449,0.22339685,100130.0,100120.0,0.179784]
[1733695129102,0.04162385,100130.0,100120.0,0.179784]
[1733695129302,1.04157524,100140.0,100120.0,0.51641965]
[1733695129303,0.43847311,100140.0,100120.0,0.51641965]
[1733695129455,0.00312298,100130.0,100120.0,0.440958]
[1733695129631,0.36144481,100140.0,100120.0,0.620732]
[1733695129836,0.00312287,100130.0,100120.0,0.440948]
[1733695130091,0.1816503,100140.0,100120.0,0.69618365]
[1733695130306,0.00512286,100130.0,100120.0,0.51640965]
[1733695130519,0.002,100130.0,100120.0,0.51640965]
[1733695130707,0.1816503,100140.0,100120.0,0.53038535]
[1733695130911,0.00312286,100130.0,100120.0,0.53038535]
[1733695131109,0.0018993,100140.0,100130.0,0.179766]
[1733695133482,0.0038993,100140.0,100130.0,0.179766]
[1733695139920,0.1836473,100140.0,100130.0,0.179766]
[1733695140178,0.1836473,100140.0,100120.0,0.45079097]
[1733695140179,0.1836473,100140.0,100120.0,0.63056497]
[1733695140597,0.00312281,100130.0,100120.0,0.45079097]
[1733695140820,0.1836473,100140.0,100120.0,0.45079097]
[1733695141062,0.00312287,100130.0,100120.0,0.45078997]
[1733695141299,0.1816473,100140.0,100120.0,0.63056397]
[1733695141602,0.00312284,100130.0,100120.0,0.45078997]
[1733695141814,0.1836473,100140.0,100120.0,0.45078997]
[1733695142034,0.00312281,100130.0,100120.0,0.45078997]
[1733695142257,0.1836473,100140.0,100120.0,0.45078997]